bitfinex/quotes_BTCUSD_20250726
["timestamp","ask_amount","ask_price","bid_price","bid_amount"]
[1753511525111,0.65321725,117470.0,117460.0,0.02781]
[1753511525565,0.18729743,117460.0,117450.0,0.24695822]
[1753511525783,0.59728515,117460.0,117450.0,0.21555822]
[1753511525993,0.42701442,117460.0,117450.0,0.22407248]
[1753511526179,0.42701471,117460.0,117450.0,0.21761822]
[1753511526386,0.16591369,117460.0,117450.0,0.21761822]
[1753511526594,0.42701471,117460.0,117450.0,0.21761822]
[1753511526980,0.42701471,117460.0,117450.0,0.22813248]
[1753511527158,0.42701471,117460.0,117450.0,0.22261822]
[1753511527366,0.59728544,117460.0,117450.0,0.22261822]
[1753511535944,0.59728544,117460.0,117450.0,0.23113248]
[1753511536385,0.42701471,117460.0,117450.0,0.23113248]
[1753511537278,0.16591369,117460.0,117450.0,0.23065248]
[1753511537425,0.42701471,117460.0,117450.0,0.23065248]
[1753511538690,0.42701471,117460.0,117450.0,0.22213822]
[1753511538848,0.42701471,117460.0,117450.0,0.23065248]
[1753511540336,0.42701471,117460.0,117450.0,0.22213822]
[1753511541165,0.50961753,117460.0,117450.0,0.22213822]
[1753511541907,0.50961753,117460.0,117450.0,0.23065248]
[1753511542106,0.50961753,117460.0,117450.0,0.22213822]
[1753511543776,0.50961753,117460.0,117450.0,0.23065248]
[1753511544970,0.50961753,117460.0,117450.0,0.22213822]
[1753511545170,0.50961753,117460.0,117450.0,0.23065248]
[1753511547009,0.24851651,117460.0,117450.0,0.23916666]
[1753511547306,0.50961753,117460.0,117450.0,0.23065248]
[1753511547530,0.50961753,117460.0,117450.0,0.23916666]
[1753511547727,0.23148952,117460.0,117450.0,0.24768077]
[1753511547947,0.41343005,117460.0,117450.0,0.23916666]
[1753511548685,0.40491652,117460.0,117450.0,0.23916666]
[1753511549149,0.1438155,117460.0,117450.0,0.23916666]
[1753511549366,0.1416755,117460.0,117450.0,0.23916666]
[1753511549571,0.41128998,117460.0,117450.0,0.24768077]
[1753511549790,0.41128998,117460.0,117450.0,0.23916666]
[1753511550895,0.41128998,117460.0,117450.0,0.24768077]
[1753511551497,0.40277652,117460.0,117450.0,0.24768077]
[1753511552149,0.1416755,117460.0,117450.0,0.24768077]
[1753511552360,0.40277652,117460.0,117450.0,0.23916666]
[1753511552633,0.41128998,117460.0,117450.0,0.23916666]
[1753511554150,0.41128998,117460.0,117450.0,0.24768077]
[1753511554364,0.41128998,117460.0,117450.0,0.23916666]
[1753511554773,0.41128998,117460.0,117450.0,0.24768077]
[1753511555773,0.40277652,117460.0,117450.0,0.24768077]
[1753511556734,0.40277652,117460.0,117450.0,0.25619481]
[1753511556930,0.40784743,117460.0,117450.0,0.25619481]
[1753511557645,0.14674641,117460.0,117450.0,0.25619481]
[1753511557855,0.407847,117460.0,117450.0,0.25619481]
[1753511558120,0.41636031,117460.0,117450.0,0.25619481]
[1753511558337,0.41636031,117460.0,117450.0,0.26470878]
[1753511558751,0.41636031,117460.0,117450.0,0.25619481]
[1753511559236,0.3993339,117460.0,117450.0,0.25619474]
[1753511559449,0.41636031,117460.0,117450.0,0.25619481]
[1753511561487,0.41636031,117460.0,117450.0,0.24768077]
[1753511561765,0.41636031,117460.0,117450.0,0.25619481]
[1753511561974,0.41636031,117460.0,117450.0,0.26470878]
[1753511562190,0.15525929,117460.0,117450.0,0.26470878]
[1753511562404,0.41636031,117460.0,117450.0,0.26470878]
[1753511562617,0.41636031,117460.0,117450.0,0.25619481]
[1753511563085,0.41636031,117460.0,117450.0,0.24768077]
[1753511563294,0.41636031,117460.0,117450.0,0.25619481]
[1753511563732,0.26961412,117460.0,117450.0,0.25619481]
[1753511563953,0.34541689,117460.0,117450.0,0.25619481]
[1753511564196,0.37095618,117460.0,117450.0,0.25619481]
[1753511564971,0.37095618,117460.0,117450.0,0.24768077]
[1753511565502,0.37095618,117460.0,117450.0,0.25619481]
[1753511565759,0.37095618,117460.0,117450.0,0.26470878]
[1753511566021,0.37095618,117460.0,117450.0,0.25619481]
[1753511566230,0.37095618,117460.0,117450.0,0.24768055]
[1753511566231,0.40772685,117460.0,117450.0,0.24768055]
[1753511566457,0.42475319,117460.0,117450.0,0.26470841]
[1753511566675,0.42475312,117460.0,117450.0,0.26470841]
[1753511566898,0.29515312,117460.0,117450.0,0.26470841]
[1753511567118,0.42471312,117460.0,117450.0,0.25619423]
[1753511567572,0.1636121,117460.0,117450.0,0.25619423]
[1753511568437,0.1636121,117460.0,117450.0,0.24768034]
[1753511568632,0.17212541,117460.0,117450.0,0.24768034]
[1753511568856,0.43322643,117460.0,117450.0,0.23916637]
[1753511569750,0.43322643,117460.0,117450.0,0.23065233]
[1753511569966,0.17212541,117460.0,117450.0,0.24768034]
[1753511570381,0.17212541,117460.0,117450.0,0.23916637]
[1753511570629,0.17212541,117460.0,117450.0,0.24768034]
[1753511570847,0.17212541,117460.0,117450.0,0.23916637]
[1753511571288,0.17212541,117460.0,117450.0,0.24768034]
[1753511571507,0.15509893,117460.0,117450.0,0.23916637]
[1753511571723,0.16361224,117460.0,117450.0,0.24768034]
[1753511572163,0.16361217,117460.0,117450.0,0.24768034]
[1753511573540,0.16361217,117460.0,117450.0,0.23916637]
[1753511573733,0.17212548,117460.0,117450.0,0.23916637]
[1753511574247,0.16361217,117460.0,117450.0,0.24768034]
[1753511574909,0.16361217,117460.0,117450.0,0.25619423]
[1753511575111,0.16361217,117460.0,117450.0,0.24768034]
[1753511575640,0.16361217,117460.0,117450.0,0.23916637]
[1753511575872,0.16361217,117460.0,117450.0,0.24768034]
[1753511576805,0.42471319,117460.0,117450.0,0.24768034]
[1753511578047,0.42471319,117460.0,117450.0,0.25619423]
[1753511578250,0.42471319,117460.0,117450.0,0.24768034]
[1753511579941,0.29515319,117460.0,117450.0,0.24768034]
[1753511580237,0.42467319,117460.0,117450.0,0.24768034]
[1753511584177,0.42467319,117460.0,117450.0,0.25619423]
[1753511584609,0.41615995,117460.0,117450.0,0.25619423]
[1753511585195,0.42467319,117460.0,117450.0,0.24768034]
[1753511586165,0.42467319,117460.0,117450.0,0.25619423]
[1753511586399,0.15505893,117460.0,117450.0,0.25619423]
[1753511586635,0.41615995,117460.0,117450.0,0.25619423]
[1753511586861,0.42467319,117460.0,117450.0,0.25619423]
[1753511587090,0.41615995,117460.0,117450.0,0.25619423]
[1753511587556,0.15505893,117460.0,117450.0,0.25619423]
[1753511587778,0.16357217,117460.0,117450.0,0.25619423]
[1753511588129,0.15505893,117460.0,117450.0,0.26470805]
[1753511589137,0.16357217,117460.0,117450.0,0.25619423]
[1753511589331,0.16357217,117460.0,117450.0,0.24768034]
[1753511589543,0.16357217,117460.0,117450.0,0.25619423]
[1753511590050,0.15505893,117460.0,117450.0,0.25619423]
[1753511590274,0.15505893,117460.0,117450.0,0.26470805]
[1753511590737,0.16357217,117460.0,117450.0,0.25619423]
[1753511590940,0.15505893,117460.0,117450.0,0.25619423]
[1753511591180,0.16357217,117460.0,117450.0,0.25619423]
[1753511592972,0.16357217,117460.0,117450.0,0.24768034]
[1753511593187,0.16357217,117460.0,117450.0,0.25619423]
[1753511593673,0.42467319,117460.0,117450.0,0.25619423]
[1753511594422,0.42467319,117460.0,117450.0,0.24768034]
[1753511594812,0.42467319,117460.0,117450.0,0.25619423]
[1753511594952,0.42467319,117460.0,117450.0,0.24768034]
[1753511595581,0.4367965,117460.0,117450.0,0.23916637]
[1753511595816,0.4367965,117460.0,117450.0,0.25619423]
[1753511596242,0.42467319,117460.0,117450.0,0.25619423]
[1753511596457,0.42467319,117460.0,117450.0,0.24768034]
[1753511596657,0.42467319,117460.0,117450.0,0.25619423]
[1753511598067,0.42467312,117460.0,117450.0,0.25619423]
[1753511600936,0.43318636,117460.0,117450.0,0.24768034]
[1753511601187,0.43318687,117460.0,117450.0,0.2306524]
[1753511601386,0.43318687,117460.0,117450.0,0.23916651]
[1753511601619,0.43318687,117460.0,117450.0,0.24768055]
[1753511601859,0.43318687,117460.0,117450.0,0.23916651]
[1753511602088,0.43318687,117460.0,117450.0,0.2264524]
[1753511602333,0.17208643,117460.0,117450.0,0.2264524]
[1753511602582,0.43318745,117460.0,117450.0,0.23496666]
[1753511602826,0.42467392,117460.0,117450.0,0.24348077]
[1753511603323,0.42467392,117460.0,117450.0,0.23496666]
[1753511603572,0.39062102,117460.0,117450.0,0.23496666]
[1753511603822,0.41616053,117460.0,117450.0,0.2434807]
[1753511604086,0.41616045,117460.0,117450.0,0.2434807]
[1753511604558,0.41616045,117460.0,117450.0,0.23496666]
[1753511604745,0.41616045,117460.0,117450.0,0.2434807]
[1753511605731,0.15505943,117460.0,117450.0,0.2434807]
[1753511605934,0.41616045,117460.0,117450.0,0.24348077]
[1753511606131,0.41616045,117460.0,117450.0,0.25199481]
[1753511606614,0.41616045,117460.0,117450.0,0.24348077]
[1753511606827,0.42467391,117460.0,117450.0,0.24348077]
[1753511607031,0.41616045,117460.0,117450.0,0.25199481]
[1753511607248,0.15505943,117460.0,117450.0,0.25199481]
[1753511608633,0.22900047,117460.0,117450.0,0.24348077]
[1753511608813,0.22900047,117460.0,117450.0,0.23496666]
[1753511608814,0.23751393,117460.0,117450.0,0.23496666]
[1753511609016,0.23751393,117460.0,117450.0,0.23496659]
[1753511609228,0.22900047,117460.0,117450.0,0.24348063]
[1753511609653,0.23751386,117460.0,117450.0,0.23496659]
[1753511609863,0.23751386,117460.0,117450.0,0.24348063]
[1753511609864,0.22900047,117460.0,117450.0,0.24348063]
[1753511610313,0.49010149,117460.0,117450.0,0.24348063]
[1753511611313,0.49861488,117460.0,117450.0,0.23496659]
[1753511611709,0.49861488,117460.0,117450.0,0.24348063]
[1753511612611,0.42467384,117460.0,117450.0,0.24348063]
[1753511613233,0.47822645,117470.0,117460.0,0.17027073]
[1753511613420,0.72440265,117470.0,117460.0,0.17027073]
[1753511613660,0.02553929,117460.0,117450.0,0.23290659]
[1753511613872,0.02553929,117460.0,117450.0,0.23494659]
[1753511614076,0.02553929,117460.0,117450.0,0.23294659]
[1753511614713,0.02553929,117460.0,117450.0,0.24146063]
[1753511615392,0.02553929,117460.0,117450.0,0.23294659]
[1753511615620,0.02553929,117460.0,117450.0,0.24146063]
[1753511616058,0.53502102,117470.0,117460.0,0.17027073]
[1753511616293,0.00851295,117460.0,117450.0,0.49200753]
[1753511616506,0.02553936,117460.0,117450.0,0.21591822]
[1753511616709,0.01702605,117460.0,117450.0,0.2264324]
[1753511616916,0.02553929,117460.0,117450.0,0.23494637]
[1753511617147,0.0340526,117460.0,117450.0,0.23494659]
[1753511617350,0.02553929,117460.0,117450.0,0.2519746]
[1753511617567,0.01702605,117460.0,117450.0,0.2489746]
[1753511617777,0.01702605,117460.0,117450.0,0.25748849]
[1753511618365,0.01702605,117460.0,117450.0,0.25748805]
[1753511618571,0.01702605,117460.0,117450.0,0.26048805]
[1753511619218,0.00851295,117460.0,117450.0,0.26048805]
[1753511619422,0.01702597,117460.0,117450.0,0.25197394]
[1753511619653,0.71378998,117470.0,117460.0,0.17027073]
[1753511619654,0.54353354,117470.0,117460.0,0.17027073]
[1753511619879,0.57117109,117470.0,117460.0,0.17027073]
[1753511620352,0.73291502,117470.0,117460.0,0.17027073]
[1753511620569,0.72440265,117470.0,117460.0,0.17027073]
[1753511620954,0.72440265,117470.0,117460.0,0.17127073]
[1753511622622,0.46330163,117470.0,117460.0,0.17127073]
[1753511622836,0.72440265,117470.0,117460.0,0.17127073]
[1753511624026,0.72440265,117470.0,117460.0,0.17327073]
[1753511625628,0.72440265,117470.0,117460.0,0.19753073]
[1753511629731,0.46330163,117470.0,117460.0,0.19753073]
[1753511629939,0.72440265,117470.0,117460.0,0.19753073]
[1753511630157,0.72440265,117470.0,117460.0,0.20059073]
[1753511631864,0.70102265,117470.0,117460.0,0.20059073]
[1753511633629,0.42422163,117470.0,117460.0,0.20059073]
[1753511633841,0.68532265,117470.0,117460.0,0.20059073]
[1753511635993,0.42422163,117470.0,117460.0,0.20059073]
[1753511636193,0.68532265,117470.0,117460.0,0.20059073]
[1753511643974,0.53224929,117470.0,117460.0,0.20059073]
[1753511646713,0.27114827,117470.0,117460.0,0.20059073]
[1753511646933,0.53224929,117470.0,117460.0,0.20269073]
[1753511657420,0.53224929,117470.0,117460.0,0.21909073]
[1753511658207,0.43437836,117470.0,117460.0,0.21909073]
[1753511658432,0.45140376,117470.0,117460.0,0.21909073]
[1753511673190,0.19030274,117470.0,117460.0,0.21909073]
[1753511673391,0.45140376,117470.0,117460.0,0.21909073]
[1753511676930,0.14634496,117470.0,117460.0,0.26353679]
[1753511677146,0.16332962,117470.0,117460.0,0.27205032]
[1753511677357,0.42443064,117470.0,117460.0,0.23611772]
[1753511677568,0.42443064,117470.0,117460.0,0.25271772]
[1753511677771,0.43294337,117470.0,117460.0,0.25271772]
[1753511678564,0.30366337,117470.0,117460.0,0.25271772]
[1753511678762,0.55184824,117490.0,117480.0,0.17875382]
[1753511678763,0.01604841,117490.0,117480.0,0.17875382]
[1753511679071,0.28668264,117490.0,117480.0,0.21526174]
[1753511679291,0.41596264,117490.0,117480.0,0.21526174]
[1753511680285,0.41696264,117490.0,117480.0,0.21526174]
[1753511680509,0.41596264,117490.0,117480.0,0.23086174]
[1753511680672,0.41596264,117490.0,117480.0,0.23286174]
[1753511680872,0.41696264,117490.0,117480.0,0.23286174]
[1753511681135,0.28768264,117490.0,117480.0,0.23286174]
[1753511681388,0.41696264,117490.0,117480.0,0.23286174]
[1753511681591,0.41596264,117490.0,117480.0,0.23286174]
[1753511681814,0.41596264,117490.0,117480.0,0.23386174]
[1753511686653,0.58618989,117490.0,117480.0,0.23386174]
[1753511690139,0.58618989,117490.0,117480.0,0.21826174]
[1753511690350,0.57767904,117490.0,117480.0,0.21826174]
[1753511690765,0.57767904,117490.0,117480.0,0.23326174]
[1753511691507,0.44839904,117490.0,117480.0,0.23326174]
[1753511691731,0.31657802,117490.0,117480.0,0.23326174]
[1753511691936,0.57767904,117490.0,117480.0,0.23326174]
[1753511693071,0.57767904,117490.0,117480.0,0.21826174]
[1753511694107,0.57767904,117490.0,117480.0,0.23326174]
[1753511697825,0.44839904,117490.0,117480.0,0.23326174]
[1753511698040,0.57767904,117490.0,117480.0,0.23326174]
[1753511699430,0.31657802,117490.0,117480.0,0.23326174]
[1753511699659,0.57767904,117490.0,117480.0,0.23326174]
[1753511701895,0.6314146,117490.0,117480.0,0.23326174]
[1753511702131,0.62290353,117490.0,117480.0,0.23326174]
[1753511702361,0.62290353,117490.0,117480.0,0.21826174]
[1753511702811,0.61439224,117490.0,117480.0,0.21826174]
[1753511703287,0.35329122,117490.0,117480.0,0.21826174]
[1753511703513,0.61439224,117490.0,117480.0,0.21826174]
[1753511703768,0.56065668,117490.0,117480.0,0.21826174]
[1753511709027,0.56065668,117490.0,117480.0,0.04802]
[1753511711213,4.841e-05,117490.0,117480.0,0.84104108]
[1753511711447,4.841e-05,117490.0,117480.0,0.73471544]
[1753511712383,4.841e-05,117490.0,117480.0,0.47361442]
[1753511712619,4.841e-05,117490.0,117480.0,0.73371544]
[1753511712873,4.841e-05,117490.0,117480.0,0.73571544]
[1753511713794,4.841e-05,117490.0,117480.0,0.73371544]
[1753511714014,4.841e-05,117490.0,117480.0,0.73571544]
[1753511720116,4.841e-05,117490.0,117480.0,0.47461442]
[1753511720346,4.841e-05,117490.0,117480.0,0.73571544]
[1753511721735,0.26966021,117490.0,117480.0,0.34537456]
[1753511721967,4.841e-05,117490.0,117480.0,0.39864884]
[1753511722200,0.00855919,117490.0,117480.0,0.39013726]
[1753511722432,0.01707019,117490.0,117480.0,0.35701375]
[1753511722665,0.02558133,117490.0,117480.0,0.35701375]
[1753511722897,0.02558133,117490.0,117480.0,0.36552561]
[1753511723145,0.02558133,117490.0,117480.0,0.38122561]
[1753511723369,0.01707019,117490.0,117480.0,0.3897374]
[1753511723604,0.27817121,117490.0,117480.0,0.3897374]
[1753511723990,0.27817121,117490.0,117480.0,0.38122561]
[1753511724223,0.28668235,117490.0,117480.0,0.38122569]
[1753511724426,0.02558133,117490.0,117480.0,0.47184707]
[1753511724802,0.01707019,117490.0,117480.0,0.39824934]
[1753511724987,0.01707019,117490.0,117480.0,0.38973755]
[1753511725326,0.01707019,117490.0,117480.0,0.17739174]
[1753511725327,0.48892082,117490.0,117480.0,0.17739174]
[1753511725553,0.32720478,117490.0,117480.0,0.30671174]
[1753511725780,0.318694,117490.0,117480.0,0.17739174]
[1753511726000,0.45691025,117490.0,117480.0,0.33281174]
[1753511726226,0.45691025,117490.0,117480.0,0.20349174]
[1753511726441,0.48041025,117490.0,117480.0,0.33281174]
[1753511726936,0.45691025,117490.0,117480.0,0.33281174]
[1753511727157,0.45691025,117490.0,117480.0,0.34791174]
[1753511727382,0.45691025,117490.0,117480.0,0.21859174]
[1753511727577,0.48005025,117490.0,117480.0,0.32181174]
[1753511727724,0.309823,117490.0,117480.0,0.32181174]
[1753511727956,0.309823,117490.0,117480.0,0.31522382]
[1753511728186,0.309823,117490.0,117480.0,0.33045174]
[1753511728390,0.309823,117490.0,117480.0,0.20113174]
[1753511728594,0.309823,117490.0,117480.0,0.33041174]
[1753511728806,0.286683,117490.0,117480.0,0.33041174]
[1753511728980,0.286683,117490.0,117480.0,0.33253174]
[1753511730355,0.45691025,117490.0,117480.0,0.33253174]
[1753511731866,0.45691025,117490.0,117480.0,0.33249174]
[1753511732081,0.309823,117490.0,117480.0,0.33249174]
[1753511732307,0.286683,117490.0,117480.0,0.33249174]
[1753511732525,0.286683,117490.0,117480.0,0.34100382]
[1753511733025,0.02558198,117490.0,117480.0,0.34100382]
[1753511733228,0.286683,117490.0,117480.0,0.33249174]
[1753511733696,0.02558198,117490.0,117480.0,0.34749174]
[1753511735159,0.02558198,117490.0,117480.0,0.35600382]
[1753511735581,0.02558198,117490.0,117480.0,0.34749174]
[1753511736385,0.19580923,117490.0,117480.0,0.34749174]
[1753511736972,0.44839918,117490.0,117480.0,0.30663174]
[1753511737183,0.48733918,117490.0,117480.0,0.30663174]
[1753511737827,0.22623816,117490.0,117480.0,0.30663174]
[1753511738046,0.61657918,117490.0,117480.0,0.20113174]
[1753511738319,0.61657918,117490.0,117480.0,0.33037174]
[1753511739215,0.428564,117490.0,117480.0,0.33037174]
[1753511739424,0.43707514,117490.0,117480.0,0.33037174]
[1753511739659,0.58487941,117490.0,117480.0,0.33037174]
[1753511739873,0.58487941,117490.0,117480.0,0.33249174]
[1753511740075,0.56907941,117490.0,117480.0,0.33249174]
[1753511740295,0.40736308,117490.0,117480.0,0.34100382]
[1753511740504,0.42438573,117490.0,117480.0,0.34100382]
[1753511740930,0.41587437,117490.0,117480.0,0.34100382]
[1753511741138,0.41587437,117490.0,117480.0,0.34951583]
[1753511741376,0.41587437,117490.0,117480.0,0.34100382]
[1753511741561,0.41587437,117490.0,117480.0,0.33249174]
[1753511741795,0.41587437,117490.0,117480.0,0.34100382]
[1753511741982,0.42438573,117490.0,117480.0,0.34100382]
[1753511742439,0.41587437,117490.0,117480.0,0.34951583]
[1753511742867,0.41587437,117490.0,117480.0,0.34100382]
[1753511743284,0.41587437,117490.0,117480.0,0.33249174]
[1753511743968,0.41587437,117490.0,117480.0,0.34100382]
[1753511744194,0.41587437,117490.0,117480.0,0.21176382]
[1753511744618,0.37553617,117490.0,117480.0,0.21176382]
[1753511744884,0.37553617,117490.0,117480.0,0.22027583]
[1753511745757,0.37553617,117490.0,117480.0,0.21176382]
[1753511746406,0.37553617,117490.0,117480.0,0.22027583]
[1753511746620,0.37553617,117490.0,117480.0,0.22878777]
[1753511746837,0.36702488,117490.0,117480.0,0.24458777]
[1753511747296,0.37553617,117490.0,117480.0,0.24458777]
[1753511747765,0.36702488,117490.0,117480.0,0.24458777]
[1753511747989,0.36702488,117490.0,117480.0,0.25309963]
[1753511748142,0.36702488,117490.0,117480.0,0.24458777]
[1753511748738,0.36702488,117490.0,117480.0,0.25309963]
[1753511749178,0.37553609,117490.0,117480.0,0.24458777]
[1753511749377,0.37553609,117490.0,117480.0,0.25309963]
[1753511749596,0.37553609,117490.0,117480.0,0.24458777]
[1753511749834,0.37553609,117490.0,117480.0,0.25309963]
[1753511750279,0.37553609,117490.0,117480.0,0.24458777]
[1753511750732,0.15477327,117490.0,117480.0,0.24458777]
[1753511750973,0.41587429,117490.0,117480.0,0.24458777]
[1753511751399,0.41587429,117490.0,117480.0,0.25309963]
[1753511751813,0.14626206,117490.0,117480.0,0.25309963]
[1753511752035,0.40736308,117490.0,117480.0,0.25309963]
[1753511752254,0.41587379,117490.0,117480.0,0.25309963]
[1753511752690,0.15477277,117490.0,117480.0,0.26161142]
[1753511752912,0.15477277,117490.0,117480.0,0.25309963]
[1753511753971,0.15477277,117490.0,117480.0,0.26161142]
[1753511754177,0.15477277,117490.0,117480.0,0.24458777]
[1753511754404,0.15477277,117490.0,117480.0,0.25309963]
[1753511755478,0.15477277,117490.0,117480.0,0.26161142]
[1753511757139,0.14626163,117490.0,117480.0,0.26161142]
[1753511757373,0.15477277,117490.0,117480.0,0.26161142]
[1753511757621,0.14626163,117490.0,117480.0,0.25309934]
[1753511757848,0.1547727,117490.0,117480.0,0.25309934]
[1753511758957,0.15477263,117490.0,117480.0,0.26161106]
[1753511759386,0.15477263,117490.0,117480.0,0.23607569]
[1753511759631,0.17163285,117490.0,117480.0,0.24458755]
[1753511760502,0.17163285,117490.0,117480.0,0.25309934]
[1753511760714,0.17163285,117490.0,117480.0,0.24458755]
[1753511760978,0.17163285,117490.0,117480.0,0.25309934]
[1753511761444,0.16312171,117490.0,117480.0,0.25309934]
[1753511762169,0.17163278,117490.0,117480.0,0.25309934]
[1753511763046,0.18014399,117490.0,117480.0,0.24458755]
[1753511763422,0.17163278,117490.0,117480.0,0.25309934]
[1753511764250,0.17163278,117490.0,117480.0,0.26161106]
[1753511764443,0.17163278,117490.0,117480.0,0.25309934]
[1753511764657,0.17163278,117490.0,117480.0,0.24458755]
[1753511765115,0.18014399,117490.0,117480.0,0.24458755]
[1753511765345,0.17179491,117490.0,117480.0,0.24458755]
[1753511765545,0.1632837,117490.0,117480.0,0.24458755]
[1753511765748,0.1632837,117490.0,117480.0,0.25309934]
[1753511766081,0.1632837,117490.0,117480.0,0.24458755]
[1753511766289,0.1632837,117490.0,117480.0,0.25309934]
[1753511767873,0.1632837,117490.0,117480.0,0.24458755]
[1753511768359,0.17191408,117490.0,117480.0,0.24458755]
[1753511768585,0.17191408,117490.0,117480.0,0.25309934]
[1753511769370,0.17191408,117490.0,117480.0,0.24458755]
[1753511769574,0.17191408,117490.0,117480.0,0.25309934]
[1753511771237,0.17191408,117490.0,117480.0,0.24458755]
[1753511771776,0.18042522,117490.0,117480.0,0.25309934]
[1753511772893,0.18042522,117490.0,117480.0,0.24458755]
[1753511773616,0.18042522,117490.0,117480.0,0.25309934]
[1753511774078,0.17191408,117490.0,117480.0,0.24458755]
[1753511774325,0.17191408,117490.0,117480.0,0.25309934]
[1753511774773,0.17191408,117490.0,117480.0,0.24458755]
[1753511775836,0.17191408,117490.0,117480.0,0.25309934]
[1753511776607,0.17191408,117490.0,117480.0,0.24458755]
[1753511776818,0.17191408,117490.0,117480.0,0.25309934]
[1753511777257,0.18042522,117490.0,117480.0,0.24458755]
[1753511778316,0.18042522,117490.0,117480.0,0.23607569]
[1753511778766,0.17191451,117490.0,117480.0,0.24458755]
[1753511780282,0.17191451,117490.0,117480.0,0.23607569]
[1753511780433,0.18042572,117490.0,117480.0,0.23607569]
[1753511780650,0.1719148,117490.0,117480.0,0.22756375]
[1753511780875,0.1719148,117490.0,117480.0,0.23607569]
[1753511782069,0.18042616,117490.0,117480.0,0.22756375]
[1753511782294,0.18042609,117490.0,117480.0,0.22756375]
[1753511782627,0.17191509,117490.0,117480.0,0.20325174]
[1753511782868,0.34214234,117490.0,117480.0,0.20325174]
[1753511783088,0.33363127,117490.0,117480.0,0.20325174]
[1753511784101,0.59473229,117490.0,117480.0,0.20325174]
[1753511787555,0.62682115,117490.0,117480.0,0.00715]
[1753511787756,0.62682115,117490.0,117480.0,0.17739174]
[1753511788254,0.60272115,117490.0,117480.0,0.20174174]
[1753511788474,0.60272115,117490.0,117480.0,0.20381174]
[1753511789314,0.58622115,117490.0,117480.0,0.20381174]
[1753511789950,0.32512013,117490.0,117480.0,0.20381174]
[1753511790216,0.58622115,117490.0,117480.0,0.20381174]
[1753511793610,0.58622115,117490.0,117480.0,0.21232382]
[1753511793804,0.58622115,117490.0,117480.0,0.20381174]
[1753511794216,0.32512013,117490.0,117480.0,0.20381174]
[1753511794710,0.32512013,117490.0,117480.0,0.21232382]
[1753511794918,0.32512013,117490.0,117480.0,0.20381174]
[1753511795263,0.32512013,117490.0,117480.0,0.21232382]
[1753511795485,0.32512013,117490.0,117480.0,0.20381174]
[1753511797238,0.32512013,117490.0,117480.0,0.21981174]
[1753511798124,0.32512013,117490.0,117480.0,0.22832382]
[1753511798311,0.32512013,117490.0,117480.0,0.21981174]
[1753511799975,0.32512013,117490.0,117480.0,0.22832382]
[1753511801130,0.03416315,117490.0,117480.0,0.23683583]
[1753511801339,0.03404413,117490.0,117480.0,0.23683583]
[1753511801785,0.03404406,117490.0,117480.0,0.23683583]
[1753511803391,0.02491013,117500.0,117490.0,0.17873861]
[1753511803605,0.1547306,117500.0,117490.0,0.48302092]
[1753511803845,0.025566,117540.0,117520.0,0.05812669]
[1753511804076,0.1705915,117560.0,117550.0,0.1786473]
[1753511804312,0.1959692,117560.0,117550.0,0.43124138]
[1753511804537,0.19645485,117560.0,117550.0,0.1786473]
[1753511804760,0.19645485,117560.0,117550.0,0.17014036]
[1753511804989,0.07548157,117560.0,117550.0,0.17014036]
[1753511805229,0.07548157,117560.0,117550.0,0.17310036]
[1753511805460,0.2456962,117560.0,117550.0,0.17310036]
[1753511805688,0.41582209,117560.0,117550.0,0.17310036]
[1753511806123,0.41682209,117560.0,117550.0,0.17310036]
[1753511806345,0.28734209,117560.0,117550.0,0.17310036]
[1753511806549,0.41682209,117560.0,117550.0,0.17310036]
[1753511806755,0.41882209,117560.0,117550.0,0.17310036]
[1753511808146,0.41882209,117560.0,117550.0,0.19745036]
[1753511809017,0.39472209,117560.0,117550.0,0.19745036]
[1753511809721,0.17535586,117560.0,117550.0,0.19745036]
[1753511809873,0.17535586,117560.0,117550.0,0.19952036]
[1753511810706,0.17535586,117560.0,117550.0,0.19302036]
[1753511811779,0.34548175,117560.0,117550.0,0.19302036]
[1753511817479,0.16698979,117560.0,117550.0,0.19302036]
[1753511819299,0.15848401,117560.0,117550.0,0.19302036]
[1753511820457,0.3286099,117560.0,117550.0,0.19302036]
[1753511821919,0.39577026,117560.0,117550.0,0.19302036]
[1753511822198,0.38726426,117560.0,117550.0,0.19302036]
[1753511824151,0.39573791,117560.0,117550.0,0.19302036]
[1753511826737,0.65641112,117560.0,117550.0,0.19302036]
[1753511827309,0.39573791,117560.0,117550.0,0.19302036]
[1753511833985,0.65641112,117560.0,117550.0,0.19302036]
[1753511836647,0.39573791,117560.0,117550.0,0.19302036]
[1753511837252,0.41169621,117560.0,117550.0,0.19302036]
[1753511837499,0.40319014,117560.0,117550.0,0.19302036]
[1753511838354,0.40283013,117560.0,117550.0,0.19302036]
[1753511838782,0.66350334,117560.0,117550.0,0.19302036]
[1753511842192,0.64754505,117560.0,117550.0,0.19302036]
[1753511842813,0.64754505,117560.0,117550.0,0.20812036]
[1753511859043,0.63903876,117560.0,117550.0,0.20812036]
[1753511865160,0.37836555,117560.0,117550.0,0.20812036]
[1753511865365,0.63903876,117560.0,117550.0,0.20812036]
[1753511866740,0.63903876,117560.0,117550.0,0.04448]
[1753511867743,0.63903876,117560.0,117550.0,0.21462036]
[1753511873392,0.50991876,117560.0,117550.0,0.21462036]
[1753511873596,0.63899876,117560.0,117550.0,0.21462036]
[1753511874443,0.50991876,117560.0,117550.0,0.21462036]
[1753511874652,0.63899876,117560.0,117550.0,0.21462036]
[1753511874798,0.39822686,117560.0,117550.0,0.21462036]
[1753511875457,0.56835275,117560.0,117550.0,0.21462036]
[1753511878468,0.43927275,117560.0,117550.0,0.21462036]
[1753511878686,0.56835275,117560.0,117550.0,0.21462036]
[1753511881605,0.65283005,117560.0,117550.0,0.21462036]
[1753511881831,0.65283005,117560.0,117540.0,0.21050484]
[1753511881832,0.1786473,117550.0,117540.0,0.21050484]
[1753511882045,0.56840051,117550.0,117540.0,0.23094484]
[1753511882261,0.56840051,117550.0,117540.0,0.20321484]
[1753511882487,0.44782731,117550.0,117540.0,0.20321484]
[1753511882715,0.44782731,117550.0,117540.0,0.20629484]
[1753511882716,0.64949836,117550.0,117540.0,0.20629484]
[1753511882965,0.64949836,117550.0,117540.0,0.02773]
[1753511882966,0.64099156,117550.0,117540.0,0.02773]
[1753511883176,0.17867763,117530.0,117520.0,0.22941379]
[1753511883422,0.56843084,117530.0,117520.0,0.21617379]
[1753511883632,0.57693908,117530.0,117520.0,0.04599]
[1753511883847,0.62266395,117530.0,117520.0,0.04599]
[1753511884063,0.61415571,117530.0,117520.0,0.21617379]
[1753511884284,0.61415571,117530.0,117520.0,0.04599]
[1753511884750,0.61415571,117530.0,117520.0,0.04799]
[1753511884978,0.63763571,117530.0,117520.0,0.00508]
[1753511885187,0.63763571,117530.0,117520.0,0.00708]
[1753511885559,0.63763571,117530.0,117520.0,0.02973]
[1753511885805,0.61415571,117530.0,117520.0,0.02973]
[1753511885988,0.61415571,117530.0,117520.0,0.02773]
[1753511886198,0.61415571,117530.0,117520.0,0.02873]
[1753511886451,0.63763571,117530.0,117520.0,0.00408]
[1753511887305,0.63763571,117530.0,117520.0,0.002]
[1753511887547,0.65293571,117530.0,117520.0,0.002]
[1753511894382,0.3922625,117530.0,117520.0,0.002]